fUSD/lending_fUSD_20250629
["ID","MTS","AMOUNT","RATE_DAILY","PERIOD"]
[368581213,1751214651522,-657.43,0.00021917,2]
[368581214,1751214651531,-2204.908314,0.00021917,2]
[368581215,1751214651540,-2204.908314,0.00021917,2]
[368581216,1751214651550,-500.0,0.00021917,2]
[368581217,1751214651559,-510.0,0.00021917,2]
[368581218,1751214651568,-603.89908431,0.00021917,2]
[368581219,1751214651578,-151.0,0.00021917,2]
[368581220,1751214651587,-490.0,0.00021917,2]
[368581221,1751214651597,-925.93,0.00021917,2]
[368581222,1751214651719,-490.0,0.00021917,2]
[368581223,1751214651729,-151.0,0.00021917,2]
[368581224,1751214651738,-151.0,0.00021917,2]
[368581225,1751214651747,-1262.31,0.00021917,2]
[368581226,1751214651756,-490.0,0.00021917,2]
[368581227,1751214651765,-151.67367,0.00021917,2]
[368581228,1751214651775,-566.99,0.00021917,2]
[368581229,1751214651783,-490.0,0.00021917,2]
[368581230,1751214651792,-490.0,0.00021917,2]
[368581231,1751214651801,-151.0,0.00021917,2]
[368581232,1751214651810,-151.0,0.00021917,2]
[368581233,1751214651819,-151.0,0.00021917,2]
[368581234,1751214651828,-9543.38,0.00021917,2]
[368581235,1751214651839,-151.0,0.00021917,2]
[368581236,1751214651848,-490.0,0.00021917,2]
[368581237,1751214651856,-2240.58,0.00021917,2]
[368581238,1751214651866,-556.28,0.00021917,2]
[368581239,1751214651875,-490.0,0.00021917,2]
[368581240,1751214651883,-565.28,0.00021917,2]
[368581241,1751214651892,-500.0,0.00021917,2]
[368581242,1751214651902,-500.0,0.00021917,2]
[368581243,1751214651911,-500.0,0.00021917,2]
[368581244,1751214651920,-500.0,0.00021917,2]
[368581245,1751214651929,-490.0,0.00021917,2]
[368581246,1751214651939,-3260.92,0.00021917,2]
[368581247,1751214651948,-500.0,0.00021917,2]
[368581248,1751214651957,-500.0,0.00021917,2]
[368581249,1751214651966,-490.0,0.00021917,2]
[368581250,1751214651976,-1040.5,0.00021917,2]
[368581251,1751214651984,-490.0,0.00021917,2]
[368581252,1751214651995,-958.37,0.00021917,2]
[368581253,1751214652004,-490.0,0.00021917,2]
[368581254,1751214652013,-490.0,0.00021917,2]
[368581255,1751214652022,-178.69892,0.00021917,2]
[368581256,1751214652031,-1163.25,0.00021917,2]
[368581257,1751214652040,-490.0,0.00021917,2]
[368581258,1751214652049,-1633.99,0.00021917,2]
[368581259,1751214652058,-2303.77,0.00021917,2]
[368581260,1751214652067,-490.0,0.00021917,2]
[368581261,1751214652078,-178.69892,0.00021917,2]
[368581262,1751214652087,-2424.75,0.00021917,2]
[368581263,1751214652098,-1799.86,0.00021917,2]
[368581264,1751214652108,-2006.16,0.00021917,2]
[368581265,1751214652117,-490.0,0.00021917,2]
[368581266,1751214652127,-518.8,0.00021917,2]
[368581267,1751214652136,-516.79,0.00021917,2]
[368581268,1751214652146,-623.2,0.00021917,2]
[368581269,1751214652155,-490.0,0.00021917,2]
[368581270,1751214652166,-490.0,0.00021917,2]
[368581271,1751214652176,-490.0,0.00021917,2]
[368581272,1751214652185,-490.0,0.00021917,2]
[368581273,1751214652195,-490.0,0.00021917,2]
[368581274,1751214652204,-1224.55,0.00021917,2]
[368581275,1751214652213,-490.0,0.00021917,2]
[368581276,1751214652222,-2851.93,0.00021917,2]
[368581277,1751214652231,-8682.5,0.00021917,2]
[368581278,1751214652241,-832.67,0.00021917,2]
[368581279,1751214652250,-4388.88,0.00021917,2]
[368581280,1751214652260,-490.0,0.00021917,2]
[368581281,1751214652269,-551.08,0.00021917,2]
[368581282,1751214652279,-2046.68,0.00021917,2]
[368581283,1751214652289,-490.0,0.00021917,2]
[368581284,1751214652299,-1316.5,0.00021917,2]
[368581285,1751214652308,-151.0,0.00021917,2]
[368581286,1751214652318,-152.169171,0.00021917,2]
[368581287,1751214652327,-490.0,0.00021917,2]
[368581288,1751214652338,-1160.12,0.00021917,2]
[368581289,1751214652347,-490.0,0.00021917,2]
[368581290,1751214652356,-3444.03,0.00021917,2]
[368581291,1751214652366,-490.0,0.00021917,2]
[368581292,1751214652375,-490.0,0.00021917,2]
[368581293,1751214652384,-501.48555712,0.00021917,2]
[368581294,1751214652393,-4932.79,0.00021917,2]
[368581295,1751214652402,-490.0,0.00021917,2]
[368581296,1751214652411,-575.06,0.00021917,2]
[368581297,1751214652420,-821.96,0.00021917,2]
[368581298,1751214652429,-8314.98,0.00021917,2]
[368581299,1751214652438,-1162.26,0.00021917,2]
[368581300,1751214652447,-490.0,0.00021917,2]
[368581301,1751214652457,-490.0,0.00021917,2]
[368581302,1751214652466,-490.0,0.00021917,2]
[368581303,1751214652475,-490.0,0.00021917,2]
[368581304,1751214652484,-2824.05,0.00021917,2]
[368581305,1751214652494,-490.0,0.00021917,2]
[368581306,1751214652503,-490.0,0.00021917,2]
[368581307,1751214652512,-1775.74,0.00021917,2]
[368581308,1751214652521,-490.0,0.00021917,2]
[368581309,1751214652530,-490.0,0.00021917,2]
[368581310,1751214652540,-490.0,0.00021917,2]
[368581311,1751214652549,-2066.41,0.00021917,2]
[368581312,1751214652559,-490.0,0.00021917,2]
[368581313,1751214652567,-498.74,0.00021917,2]
[368581314,1751214652576,-5894.96,0.00021917,2]
[368581315,1751214652586,-6543.53,0.00021917,2]
[368581316,1751214652596,-490.0,0.00021917,2]
[368581317,1751214652606,-490.0,0.00021917,2]
[368581318,1751214652615,-490.0,0.00021917,2]
[368581319,1751214652625,-1711.19,0.00021917,2]
[368581320,1751214652634,-552.37882457,0.00021917,2]
[368581321,1751214652644,-490.0,0.00021917,2]
[368581322,1751214652653,-490.0,0.00021917,2]
[368581323,1751214652662,-151.382302,0.00021917,2]
[368581324,1751214652671,-950.1,0.00021917,2]
[368581325,1751214652680,-490.0,0.00021917,2]
[368581326,1751214652690,-490.0,0.00021917,2]
[368581327,1751214652699,-2228.07,0.00021917,2]
[368581328,1751214652708,-490.0,0.00021917,2]
[368581329,1751214652717,-490.0,0.00021917,2]
[368581330,1751214652726,-1140.31,0.00021917,2]
[368581331,1751214652735,-1331.98,0.00021917,2]
[368581332,1751214652744,-490.0,0.00021917,2]
[368581333,1751214652753,-1771.95,0.00021917,2]
[368581334,1751214652762,-490.0,0.00021917,2]
[368581335,1751214652771,-169.45391978,0.00021917,2]
[368581336,1751214652780,-490.0,0.00021917,2]
[368581337,1751214652789,-490.0,0.00021917,2]
[368581338,1751214652799,-151.0,0.00021917,2]
[368581339,1751214652807,-154.141293,0.00021917,2]
[368581340,1751214652817,-490.0,0.00021917,2]
[368581341,1751214652826,-490.0,0.00021917,2]
[368581342,1751214652835,-543.94,0.00021917,2]
[368581343,1751214652845,-580.59,0.00021917,2]
[368581344,1751214652854,-158.594384,0.00021917,2]
[368581345,1751214652863,-24987.63,0.00021917,2]
[368581346,1751214652872,-151.571315,0.00021917,2]
[368581347,1751214652881,-500.0,0.00021917,2]
[368581348,1751214652891,-12014.31,0.00021917,2]
[368581349,1751214652900,-500.0,0.00021917,2]
[368581350,1751214652908,-500.0,0.00021917,2]
[368581351,1751214652918,-500.0,0.00021917,2]
[368581352,1751214652927,-490.0,0.00021917,2]
[368581353,1751214652935,-863.2,0.00021917,2]
[368581354,1751214652945,-500.0,0.00021917,2]
[368581355,1751214652954,-1550.96,0.00021917,2]
[368581356,1751214652962,-490.0,0.00021917,2]
[368581357,1751214652971,-500.0,0.00021917,2]
[368581358,1751214652980,-500.0,0.00021917,2]
[368581359,1751214652989,-500.0,0.00021917,2]
[368581360,1751214652999,-590.67,0.00021917,2]
[368581361,1751214653008,-500.0,0.00021917,2]
[368581362,1751214653017,-1549.37,0.00021917,2]
[368581363,1751214653028,-490.0,0.00021917,2]
[368581364,1751214653037,-3188.83,0.00021917,2]
[368581365,1751214653046,-555.71,0.00021917,2]
[368581366,1751214653055,-500.0,0.00021917,2]
[368581367,1751214653064,-490.0,0.00021917,2]
[368581368,1751214653073,-490.0,0.00021917,2]
[368581369,1751214653083,-1803.33,0.00021917,2]
[368581370,1751214653093,-601.08,0.00021917,2]
[368581371,1751214653102,-289.58268,0.00021917,2]
[368581372,1751214653111,-490.0,0.00021917,2]
[368581373,1751214653121,-4684.13,0.00021917,2]
[368581374,1751214653131,-454.86656566,0.00021917,2]
[368581375,1751214653142,-490.0,0.00021917,2]
[368581376,1751214653151,-490.0,0.00021917,2]
[368581377,1751214653162,-1482.88,0.00021917,2]
[368581378,1751214653171,-2787.75,0.00021917,2]
[368581379,1751214653180,-490.0,0.00021917,2]
[368581380,1751214653189,-5231.63,0.00021917,2]
[368581381,1751214653199,-1743.01,0.00021917,2]
[368581382,1751214653207,-490.0,0.00021917,2]
[368581383,1751214653218,-490.0,0.00021917,2]
[368581384,1751214653227,-151.0,0.00021917,2]
[368581385,1751214653237,-151.0,0.00021917,2]
[368581386,1751214653246,-490.0,0.00021917,2]
[368581387,1751214653255,-2691.75,0.00021917,2]
[368581388,1751214653264,-580.67,0.00021917,2]
[368581389,1751214653273,-490.0,0.00021917,2]
[368581390,1751214653282,-3654.7,0.00021917,2]
[368581391,1751214653295,-942.29,0.00021917,2]
[368581392,1751214653305,-151.0,0.00021917,2]
[368581393,1751214653314,-2504.66,0.00021917,2]
[368581394,1751214653323,-1652.0,0.00021917,2]
[368581395,1751214653332,-151.912259,0.00021917,2]
[368581396,1751214653342,-490.0,0.00021917,2]
[368581397,1751214653351,-490.0,0.00021917,2]
[368581398,1751214653362,-521.069967,0.00021917,2]
[368581399,1751214653372,-1282.04,0.00021917,2]
[368581400,1751214653381,-490.0,0.00021917,2]
[368581401,1751214653390,-2591.88,0.00021917,2]
[368581402,1751214653400,-521.069967,0.00021917,2]
[368581403,1751214653409,-490.0,0.00021917,2]
[368581404,1751214653418,-490.0,0.00021917,2]
[368581405,1751214653427,-490.0,0.00021917,2]
[368581406,1751214653436,-1918.61,0.00021917,2]
[368581407,1751214653445,-490.0,0.00021917,2]
[368581408,1751214653455,-2856.4,0.00021917,2]
[368581409,1751214653464,-521.069967,0.00021917,2]
[368581410,1751214653473,-2128.25,0.00021917,2]
[368581411,1751214653483,-521.069967,0.00021917,2]
[368581412,1751214653492,-502.87,0.00021917,2]
[368581413,1751214653501,-7725.42,0.00021917,2]
[368581414,1751214653510,-3225.15,0.00021917,2]
[368581415,1751214653519,-490.0,0.00021917,2]
[368581416,1751214653529,-151.0,0.00021917,2]
[368581417,1751214653538,-543.75,0.00021917,2]
[368581418,1751214653548,-151.0,0.00021917,2]
[368581419,1751214653557,-1389.95,0.00021917,2]
[368581420,1751214653567,-490.0,0.00021917,2]
[368581421,1751214653576,-1430.34,0.00021917,2]
[368581422,1751214653585,-1984.5,0.00021917,2]
[368581423,1751214653594,-1663.81,0.00021917,2]
[368581424,1751214653603,-490.0,0.00021917,2]
[368581425,1751214653613,-490.0,0.00021917,2]
[368581426,1751214653623,-490.0,0.00021917,2]
[368581427,1751214653633,-151.0,0.00021917,2]
[368581428,1751214653644,-151.0,0.00021917,2]
[368581429,1751214653654,-490.0,0.00021917,2]
[368581430,1751214653666,-11827.66,0.00021917,2]
[368581431,1751214653677,-1425.28,0.00021917,2]
[368581432,1751214653688,-151.0,0.00021917,2]
[368581433,1751214653699,-151.0,0.00021917,2]
[368581434,1751214653709,-1937.11,0.00021917,2]
[368581435,1751214653718,-151.0,0.00021917,2]
[368581436,1751214653730,-490.0,0.00021917,2]
[368581437,1751214653739,-151.0,0.00021917,2]
[368581438,1751214653750,-5030.18,0.00021917,2]
[368581439,1751214653760,-490.0,0.00021917,2]
[368581440,1751214653770,-490.0,0.00021917,2]
[368581441,1751214653781,-1932.71,0.00021917,2]
[368581442,1751214653792,-490.0,0.00021917,2]
[368581443,1751214653802,-490.0,0.00021917,2]
[368581444,1751214653812,-506.9,0.00021917,2]
[368581445,1751214653822,-151.0,0.00021917,2]
[368581446,1751214653831,-2217.28,0.00021917,2]
[368581447,1751214653842,-2400.62,0.00021917,2]
[368581448,1751214653853,-2818.16,0.00021917,2]
[368581449,1751214653863,-3161.76,0.00021917,2]
[368581450,1751214653873,-1190.24,0.00021917,2]
[368581451,1751214653884,-490.0,0.00021917,2]
[368581452,1751214653894,-2784.29,0.00021917,2]
[368581453,1751214653903,-151.0,0.00021917,2]
[368581454,1751214653915,-1836.1,0.00021917,2]
[368581455,1751214653925,-2288.91,0.00021917,2]
[368581456,1751214653936,-270.069726,0.00021917,2]
[368581457,1751214653946,-490.0,0.00021917,2]
[368581458,1751214653956,-490.0,0.00021917,2]
[368581459,1751214653966,-490.0,0.00021917,2]
[368581460,1751214653976,-2189.3,0.00021917,2]
[368581461,1751214653986,-743.93,0.00021917,2]
[368581462,1751214653996,-3279.64,0.00021917,2]
[368581463,1751214654007,-490.0,0.00021917,2]
[368581464,1751214654018,-3917.6,0.00021917,2]
[368581465,1751214654028,-2040.43,0.00021917,2]
[368581466,1751214654039,-4283.07,0.00021917,2]
[368581467,1751214654050,-1866.4,0.00021917,2]
[368581468,1751214654062,-4806.65,0.00021917,2]
[368581469,1751214654073,-933.34,0.00021917,2]
[368581470,1751214654083,-490.0,0.00021917,2]
[368581471,1751214654096,-387.58621687,0.00021917,2]
[368581472,1751214654107,-948.17,0.00021917,2]
[368581473,1751214654118,-151.0,0.00021917,2]
[368581474,1751214654128,-156.543852,0.00021917,2]
[368581475,1751214654140,-3614.12,0.00021917,2]
[368581476,1751214654151,-490.0,0.00021917,2]
[368581477,1751214654161,-490.0,0.00021917,2]
[368581478,1751214654172,-490.0,0.00021917,2]
[368581479,1751214654181,-490.0,0.00021917,2]
[368581480,1751214654191,-490.0,0.00021917,2]
[368581481,1751214654201,-490.0,0.00021917,2]
[368581482,1751214654212,-490.0,0.00021917,2]
[368581483,1751214654222,-151.0,0.00021917,2]
[368581484,1751214654233,-490.0,0.00021917,2]
[368581485,1751214654244,-490.0,0.00021917,2]
[368581486,1751214654256,-156.766146,0.00021917,2]
[368581487,1751214654266,-3156.48,0.00021917,2]
[368581488,1751214654277,-490.0,0.00021917,2]
[368581489,1751214654292,-258.45582483,0.00021917,2]
[368581490,1751214654303,-18188.27,0.00021917,2]
[368581491,1751214654315,-490.0,0.00021917,2]
[368581492,1751214654325,-2024.22,0.00021917,2]
[368581493,1751214654336,-1863.75,0.00021917,2]
[368581494,1751214654347,-490.0,0.00021917,2]
[368581495,1751214654358,-964.23,0.00021917,2]
[368581496,1751214654370,-490.0,0.00021917,2]
[368581497,1751214654381,-6339.03,0.00021917,2]
[368581498,1751214654390,-971.19,0.00021917,2]
[368581499,1751214654400,-2984.05,0.00021917,2]
[368581500,1751214654411,-12438.71,0.00021917,2]
[368581501,1751214654421,-2808.11,0.00021917,2]
[368581502,1751214654432,-2728.53,0.00021917,2]
[368581503,1751214654443,-778.95,0.00021917,2]
[368581504,1751214654453,-490.0,0.00021917,2]
[368581505,1751214654465,-3136.07,0.00021917,2]
[368581506,1751214654476,-1073.99,0.00021917,2]
[368581507,1751214654487,-1024.69,0.00021917,2]
[368581508,1751214654499,-1552.28,0.00021917,2]
[368581509,1751214654509,-490.0,0.00021917,2]
[368581510,1751214654521,-807.15,0.00021917,2]
[368581511,1751214654532,-490.0,0.00021917,2]
[368581512,1751214654543,-490.0,0.00021917,2]
[368581513,1751214654554,-490.0,0.00021917,2]
[368581514,1751214654564,-8186.52,0.00021917,2]
[368581515,1751214654576,-2650.21,0.00021917,2]
[368581516,1751214654586,-490.0,0.00021917,2]
[368581517,1751214654599,-2193.86,0.00021917,2]
[368581518,1751214654611,-490.0,0.00021917,2]
[368581519,1751214654623,-582.226835,0.00021917,2]
[368581520,1751214654634,-151.0,0.00021917,2]
[368581521,1751214654645,-582.226835,0.00021917,2]
[368581522,1751214654655,-151.0,0.00021917,2]
[368581523,1751214654666,-746.68,0.00021917,2]
[368581524,1751214654677,-746.68,0.00021917,2]
[368581525,1751214654687,-746.68,0.00021917,2]
[368581526,1751214654698,-746.68,0.00021917,2]
[368581527,1751214654709,-746.68,0.00021917,2]
[368581528,1751214654720,-490.0,0.00021917,2]
[368581529,1751214654731,-746.68,0.00021917,2]
[368581530,1751214654742,-746.68,0.00021917,2]
[368581531,1751214654753,-1452.38,0.00021917,2]
[368581532,1751214654764,-746.68,0.00021917,2]
[368581533,1751214654776,-746.68,0.00021917,2]
[368581534,1751214654787,-153.869437,0.00021917,2]
[368581535,1751214654797,-746.68,0.00021917,2]
[368581536,1751214654809,-582.226835,0.00021917,2]
[368581537,1751214654819,-2224.93,0.00021917,2]
[368581538,1751214654829,-2453.19,0.00021917,2]
[368581539,1751214654842,-582.226835,0.00021917,2]
[368581540,1751214654853,-598.24,0.00021917,2]
[368581541,1751214654864,-490.0,0.00021917,2]
[368581542,1751214654875,-490.0,0.00021917,2]
[368581543,1751214654886,-2863.95,0.00021917,2]
[368581544,1751214654897,-946.91,0.00021917,2]
[368581545,1751214654908,-151.0,0.00021917,2]
[368581546,1751214654919,-1435.56,0.00021917,2]
[368581547,1751214654929,-826.38,0.00021917,2]
[368581548,1751214654941,-152.5792,0.00021917,2]
[368581549,1751214654952,-762.72,0.00021917,2]
[368581550,1751214654962,-490.0,0.00021917,2]
[368581551,1751214654973,-3380.82,0.00021917,2]
[368581552,1751214654983,-5037.54,0.00021917,2]
[368581553,1751214654994,-490.0,0.00021917,2]
[368581554,1751214655005,-708.75,0.00021917,2]
[368581555,1751214655017,-2393.41,0.00021917,2]
[368581556,1751214655027,-217.01758081,0.00021917,2]
[368581557,1751214655038,-1217.68,0.00021917,2]
[368581558,1751214655048,-1497.15,0.00021917,2]
[368581559,1751214655059,-4521.53,0.00021917,2]
[368581560,1751214655070,-490.0,0.00021917,2]
[368581561,1751214655080,-2639.16,0.00021917,2]
[368581562,1751214655091,-490.0,0.00021917,2]
[368581563,1751214655101,-1037.51,0.00021917,2]
[368581564,1751214655110,-678.84,0.00021917,2]
[368581565,1751214655120,-678.84,0.00021917,2]
[368581566,1751214655130,-678.84,0.00021917,2]
[368581567,1751214655140,-678.84,0.00021917,2]
[368581568,1751214655150,-490.0,0.00021917,2]
[368581569,1751214655160,-678.84,0.00021917,2]
[368581570,1751214655170,-678.84,0.00021917,2]
[368581571,1751214655179,-490.0,0.00021917,2]
[368581572,1751214655189,-1760.84,0.00021917,2]
[368581573,1751214655199,-2651.52,0.00021917,2]
[368581574,1751214655208,-889.97,0.00021917,2]
[368581575,1751214655218,-1085.27,0.00021917,2]
[368581576,1751214655227,-151.0,0.00021917,2]
[368581577,1751214655237,-151.0,0.00021917,2]
[368581578,1751214655246,-5368.27,0.00021917,2]
[368581579,1751214655257,-151.0,0.00021917,2]
[368581580,1751214655266,-490.0,0.00021917,2]
[368581581,1751214655276,-541.18,0.00021917,2]
[368581582,1751214655287,-152.720344,0.00021917,2]
[368581583,1751214655297,-1442.27,0.00021917,2]
[368581584,1751214655306,-490.0,0.00021917,2]
[368581585,1751214655316,-1197.62,0.00021917,2]
[368581586,1751214655326,-490.0,0.00021917,2]
[368581587,1751214655336,-151.0,0.00021917,2]
[368581588,1751214655350,-153.257045,0.00021917,2]
[368581589,1751214655363,-526.94,0.00021917,2]
[368581590,1751214655372,-490.0,0.00021917,2]
[368581591,1751214655382,-526.94,0.00021917,2]
[368581592,1751214655392,-1374.83,0.00021917,2]
[368581593,1751214655402,-490.0,0.00021917,2]
[368581594,1751214655411,-5943.2,0.00021917,2]
[368581595,1751214655422,-1348.94,0.00021917,2]
[368581596,1751214655431,-1258.84,0.00021917,2]
[368581597,1751214655441,-1504.93,0.00021917,2]
[368581598,1751214655451,-490.0,0.00021917,2]
[368581599,1751214655460,-151.0,0.00021917,2]
[368581600,1751214655471,-151.0,0.00021917,2]
[368581601,1751214655480,-151.0,0.00021917,2]
[368581602,1751214655490,-1853.84,0.00021917,2]
[368581603,1751214655500,-158.120444,0.00021917,2]
[368581604,1751214655509,-2067.09,0.00021917,2]
[368581605,1751214655519,-509.94558105,0.00021917,2]
[368581606,1751214655528,-377.73420351,0.00021917,2]
[368581607,1751214655538,-2561.19,0.00021917,2]
[368581608,1751214655547,-22500.47,0.00021917,2]
[368581609,1751214655557,-490.0,0.00021917,2]
[368581610,1751214655567,-490.0,0.00021917,2]
[368581611,1751214655577,-666.6,0.00021917,2]
[368581612,1751214655587,-3220.03,0.00021917,2]
[368581613,1751214655597,-490.0,0.00021917,2]
[368581614,1751214655607,-490.0,0.00021917,2]
[368581615,1751214655617,-490.0,0.00021917,2]
[368581616,1751214655626,-490.0,0.00021917,2]
[368581617,1751214655636,-1267.38,0.00021917,2]
[368581618,1751214655645,-490.0,0.00021917,2]
[368581619,1751214655655,-490.0,0.00021917,2]
[368581620,1751214655665,-490.0,0.00021917,2]
[368581621,1751214655675,-490.0,0.00021917,2]
[368581622,1751214655684,-500.0,0.00021917,2]
[368581623,1751214655695,-492.1267749,0.00021917,2]
[368581624,1751214655705,-4799.15,0.00021917,2]
[368581625,1751214655715,-17059.44,0.00021917,2]
[368581626,1751214655725,-490.0,0.00021917,2]
[368581627,1751214655735,-490.0,0.00021917,2]
[368581628,1751214655745,-1117.43,0.00021917,2]
[368581629,1751214655755,-2446.04,0.00021917,2]
[368581630,1751214655764,-490.0,0.00021917,2]
[368581631,1751214655774,-8001.11,0.00021917,2]
[368581632,1751214655783,-490.0,0.00021917,2]
[368581633,1751214655793,-2597.71,0.00021917,2]
[368581634,1751214655803,-500.0,0.00021917,2]
[368581635,1751214655813,-3134.39,0.00021917,2]
[368581636,1751214655823,-4768.02,0.00021917,2]
[368581637,1751214655832,-4471.47,0.00021917,2]
[368581638,1751214655843,-2091.2,0.00021917,2]
[368581639,1751214655853,-490.0,0.00021917,2]
[368581640,1751214655863,-1563.4,0.00021917,2]
[368581641,1751214655873,-490.0,0.00021917,2]
[368581642,1751214655883,-490.0,0.00021917,2]
[368581643,1751214655892,-2404.66,0.00021917,2]
[368581644,1751214655902,-1393.62,0.00021917,2]
[368581645,1751214655913,-465.5361354,0.00021917,2]
[368581646,1751214655923,-5517.85,0.00021917,2]
[368581647,1751214655934,-490.0,0.00021917,2]
[368581648,1751214655944,-151.0,0.00021917,2]
[368581649,1751214655953,-151.0,0.00021917,2]
[368581650,1751214655963,-490.0,0.00021917,2]
[368581651,1751214655972,-151.0,0.00021917,2]
[368581652,1751214655982,-151.0,0.00021917,2]
[368581653,1751214655992,-1222.3,0.00021917,2]
[368581654,1751214656002,-500.0,0.00021917,2]
[368581655,1751214656012,-423.27804552,0.00021917,2]
[368581656,1751214656021,-151.0,0.00021917,2]
[368581657,1751214656031,-590.01576033,0.00021917,2]
[368581658,1751214659245,-731.6652934,0.00021917,2]
[368581659,1751214661300,-883.65894627,0.00021917,2]
[368581660,1751214661309,-2690.99,0.00021917,2]
[368581661,1751214661319,-2984.26,0.00021917,2]
[368581662,1751214661328,-490.0,0.00021917,2]
[368581663,1751214661337,-1574.61,0.00021917,2]
[368581664,1751214661347,-221.01882731,0.00021917,2]
[368581665,1751214661356,-1183.88779725,0.00021917,2]
[368581666,1751214661367,-1425.54220275,0.00021917,2]
[368581667,1751214661376,-151.0,0.00021917,2]
[368581668,1751214661385,-1196.58598604,0.00021917,2]
[368581669,1751214661422,-377.80401396,0.00021917,2]
[368581670,1751214661431,-151.0,0.00021917,2]
[368581671,1751214661440,-2444.57,0.00021917,2]
[368581672,1751214661449,-151.0,0.00021917,2]
[368581673,1751214661459,-103.15058464,0.00021917,2]
[368581674,1751214661480,-386.84941536,0.00021917,2]
[368581675,1751214661490,-39.35516103,0.00021917,2]
[368581677,1751214711844,363.57,0.00013699,2]
[368581682,1751215027386,161.14,0.00025079,120]
[368581685,1751215581866,508.53,0.00027397,120]
[368581687,1751215817954,345.39,0.00013699,2]
[368581703,1751215831889,-169.91,0.00016108,2]
[368581705,1751215831900,-300.0,0.00016184,2]
[368581706,1751215831910,-187.43,0.00016712,2]
[368581707,1751215831920,-516.0,0.00017131,2]
[368581708,1751215831930,-250.0,0.00017719,2]
[368581711,1751215831940,-300.0,0.00017719,2]
[368581713,1751215831950,-71.4377239,0.00017719,2]
[368581715,1751215831963,-178.5622761,0.00017719,2]
[368581717,1751215831972,-173.9,0.00018843,2]
[368581719,1751215831982,-167.74927126,0.00018846,2]
[368581721,1751215831992,-200.0,0.00018849,2]
[368581723,1751215832001,-500.0,0.00018946,2]
[368581725,1751215832011,-902.19831835,0.00018946,2]
[368581727,1751215832023,-681.76168165,0.00018946,2]
[368581730,1751215832033,-231.71097136,0.00018996,2]
[368581733,1751215832052,-11.28902864,0.00018996,2]
[368581736,1751215832070,-300.0,0.00018996,2]
[368581738,1751215832084,-300.0,0.00018996,2]
[368581740,1751215832095,-1200.0,0.00018996,2]
[368581742,1751215832105,-1200.0,0.00018997,2]
[368581745,1751215832116,-3126.88430242,0.00018998,2]
[368581747,1751215832130,-1458.8858775,0.00018998,2]
[368581749,1751215832142,-778.21598,0.00018998,2]
[368581752,1751215832155,-2540.6771445,0.00018998,2]
[368581754,1751215832167,-3112.5828675,0.00018998,2]
[368581756,1751215832180,-1441.35,0.00018998,2]
[368581759,1751215832192,-856.27382808,0.00018998,2]
[368581761,1751215832202,-1599.19,0.00018999,2]
[368581763,1751215832212,-233.83071042,0.00019086,2]
[368581765,1751215832222,-167.74927126,0.00019134,2]
[368581767,1751215832232,-188.54,0.00019178,2]
[368581769,1751215832242,-167.74927126,0.00019421,2]
[368581771,1751215832252,-596.84,0.0001945,2]